[Event "Titled Tuesday Blitz November 15 Early 2022"]
[White "Kollars, Dmitrij"]
[Black "Gabrielian, Artur"]
[WhiteFideId "12909572"]
[BlackFideId "4131002"]
[WhiteElo "2584"]
[BlackElo "2432"]
[Result "1/2-1/2"]
[Round "03"]
[TimeControl "180+1"]
[Date "2022.11.15"]
[WhiteClock "0:00:07"]
[BlackClock "0:00:13"]

1. c4 {[%clk 0:03:00]}  Nf6 {[%clk 0:02:59]} 2. Nc3 {[%clk 0:02:57]}  d5 {[%clk 0:02:58]} 3. cxd5 {[%clk 0:02:54]}  Nxd5 {[%clk 0:02:58]} 4. e4 {[%clk 0:02:54]}  Nxc3 {[%clk 0:02:57]} 5. dxc3 {[%clk 0:02:55]}  Qxd1+ {[%clk 0:02:56]} 6. Kxd1 {[%clk 0:02:56]}  e5 {[%clk 0:02:42]} 7. Be3 {[%clk 0:02:55]}  Nd7 {[%clk 0:02:40]} 8. Bc4 {[%clk 0:02:43]}  Bc5 {[%clk 0:02:39]} 9. Ke2 {[%clk 0:02:43]}  Bxe3 {[%clk 0:02:39]} 10. Kxe3 {[%clk 0:02:44]}  Ke7 {[%clk 0:02:38]} 11. Nf3 {[%clk 0:02:29]}  f6 {[%clk 0:02:37]} 12. a4 {[%clk 0:02:16]}  a5 {[%clk 0:02:34]} 13. Nd2 {[%clk 0:02:10]}  Nb6 {[%clk 0:02:33]} 14. Bb3 {[%clk 0:02:05]}  Bd7 {[%clk 0:02:27]} 15. Rhd1 {[%clk 0:02:00]}  Rhd8 {[%clk 0:02:26]} 16. Nc4 {[%clk 0:01:51]}  Nxc4+ {[%clk 0:01:44]} 17. Bxc4 {[%clk 0:01:52]}  Bc6 {[%clk 0:01:42]} 18. Bb5 {[%clk 0:01:45]}  Bxb5 {[%clk 0:01:38]} 19. axb5 {[%clk 0:01:46]}  Rxd1 {[%clk 0:01:37]} 20. Rxd1 {[%clk 0:01:47]}  b6 {[%clk 0:01:35]} 21. g3 {[%clk 0:01:22]}  a4 {[%clk 0:01:30]} 22. f4 {[%clk 0:01:05]}  a3 {[%clk 0:01:20]} 23. bxa3 {[%clk 0:01:06]}  Rxa3 {[%clk 0:01:20]} 24. Kd3 {[%clk 0:01:04]}  Ra2 {[%clk 0:01:17]} 25. fxe5 {[%clk 0:00:48]}  fxe5 {[%clk 0:01:16]} 26. Kc4 {[%clk 0:00:48]}  Ke6 {[%clk 0:01:04]} 27. Rd8 {[%clk 0:00:47]}  Rxh2 {[%clk 0:01:02]} 28. Re8+ {[%clk 0:00:46]}  Kd6 {[%clk 0:01:01]} 29. Rd8+ {[%clk 0:00:46]}  Ke7 {[%clk 0:01:01]} 30. Rg8 {[%clk 0:00:44]}  Kd6 {[%clk 0:00:31]} 31. Rxg7 {[%clk 0:00:43]}  Re2 {[%clk 0:00:27]} 32. Kd3 {[%clk 0:00:37]}  Rg2 {[%clk 0:00:27]} 33. Kc4 {[%clk 0:00:34]}  Re2 {[%clk 0:00:26]} 34. Rg4 {[%clk 0:00:31]}  Ke6 {[%clk 0:00:26]} 35. Rh4 {[%clk 0:00:30]}  h5 {[%clk 0:00:24]} 36. Kd3 {[%clk 0:00:25]}  Rg2 {[%clk 0:00:24]} 37. Rxh5 {[%clk 0:00:24]}  Rxg3+ {[%clk 0:00:23]} 38. Kc4 {[%clk 0:00:25]}  Rg6 {[%clk 0:00:19]} 39. Rh8 {[%clk 0:00:24]}  Kd6 {[%clk 0:00:18]} 40. Rd8+ {[%clk 0:00:24]}  Ke7 {[%clk 0:00:18]} 41. Rd1 {[%clk 0:00:22]}  Rd6 {[%clk 0:00:18]} 42. Rh1 {[%clk 0:00:21]}  Ke6 {[%clk 0:00:18]} 43. Rh7 {[%clk 0:00:20]}  c6 {[%clk 0:00:17]} 44. Rh6+ {[%clk 0:00:18]}  Kd7 {[%clk 0:00:17]} 45. Rh7+ {[%clk 0:00:17]}  Ke6 {[%clk 0:00:17]} 46. Rb7 {[%clk 0:00:17]}  cxb5+ {[%clk 0:00:16]} 47. Kxb5 {[%clk 0:00:18]}  Rd3 {[%clk 0:00:14]} 48. Rxb6+ {[%clk 0:00:19]}  Kd7 {[%clk 0:00:14]} 49. c4 {[%clk 0:00:07]}  Rd4 {[%clk 0:00:14]} 50. Rb7+ {[%clk 0:00:06]}  Ke6 {[%clk 0:00:13]} 51. c5 {[%clk 0:00:05]}  Rxe4 {[%clk 0:00:13]} 52. c6 {[%clk 0:00:05]}  Re1 {[%clk 0:00:14]} 53. Rh7 {[%clk 0:00:03]}  Rb1+ {[%clk 0:00:13]} 54. Ka6 {[%clk 0:00:03]}  Rc1 {[%clk 0:00:13]} 55. Kb7 {[%clk 0:00:04]}  e4 {[%clk 0:00:13]} 56. c7 {[%clk 0:00:05]}  Ke5 {[%clk 0:00:12]} 57. Rh6 {[%clk 0:00:04]}  Kd5 {[%clk 0:00:12]} 58. Rh5+ {[%clk 0:00:04]}  Kd4 {[%clk 0:00:12]} 59. Rh6 {[%clk 0:00:04]}  Kd5 {[%clk 0:00:13]} 60. c8=Q {[%clk 0:00:03]}  Rxc8 {[%clk 0:00:12]} 61. Kxc8 {[%clk 0:00:04]}  e3 {[%clk 0:00:12]} 62. Kd7 {[%clk 0:00:05]}  Kd4 {[%clk 0:00:12]} 63. Kd6 {[%clk 0:00:04]}  e2 {[%clk 0:00:13]} 64. Re6 {[%clk 0:00:04]}  Kd3 {[%clk 0:00:13]} 65. Kd5 {[%clk 0:00:05]}  Kd2 {[%clk 0:00:13]} 66. Kd4 {[%clk 0:00:06]}  e1=Q {[%clk 0:00:13]} 67. Rxe1 {[%clk 0:00:07]}  Kxe1 {[%clk 0:00:13]} 1/2-1/2


[Site "https://www.chess.com"]

[Event "Titled Tuesday Blitz November 15 Early 2022"]
[White "Kosakowski, Jakub"]
[Black "Dubov, Daniil"]
[WhiteFideId "1185080"]
[BlackFideId "24126055"]
[WhiteElo "2463"]
[BlackElo "2791"]
[Result "1-0"]
[Round "03"]
[TimeControl "180+1"]
[Date "2022.11.15"]
[WhiteClock "0:00:10"]
[BlackClock "0:00:02"]

1. e4 {[%clk 0:02:57]}  g6 {[%clk 0:02:57]} 2. d4 {[%clk 0:02:56]}  d6 {[%clk 0:02:58]} 3. Nc3 {[%clk 0:02:56]}  Bg7 {[%clk 0:02:56]} 4. Be3 {[%clk 0:02:56]}  a6 {[%clk 0:02:55]} 5. f3 {[%clk 0:02:56]}  b5 {[%clk 0:02:52]} 6. Qd2 {[%clk 0:02:56]}  Nd7 {[%clk 0:02:50]} 7. h4 {[%clk 0:02:57]}  h5 {[%clk 0:02:49]} 8. Nh3 {[%clk 0:02:56]}  Nb6 {[%clk 0:02:48]} 9. Ng5 {[%clk 0:02:54]}  b4 {[%clk 0:02:42]} 10. Nd1 {[%clk 0:02:53]}  Nf6 {[%clk 0:02:40]} 11. Nf2 {[%clk 0:02:48]}  O-O {[%clk 0:02:36]} 12. Qxb4 {[%clk 0:02:22]}  Rb8 {[%clk 0:02:32]} 13. Qd2 {[%clk 0:02:22]}  c5 {[%clk 0:02:24]} 14. Be2 {[%clk 0:02:02]}  cxd4 {[%clk 0:02:21]} 15. Bxd4 {[%clk 0:02:00]}  e5 {[%clk 0:02:21]} 16. Be3 {[%clk 0:01:52]}  d5 {[%clk 0:02:21]} 17. Bc5 {[%clk 0:01:51]}  Re8 {[%clk 0:02:19]} 18. O-O {[%clk 0:01:51]}  Na4 {[%clk 0:02:04]} 19. Ba3 {[%clk 0:01:39]}  Bf8 {[%clk 0:01:57]} 20. Bxf8 {[%clk 0:01:34]}  Rxf8 {[%clk 0:01:57]} 21. b3 {[%clk 0:01:35]}  Nc5 {[%clk 0:01:57]} 22. exd5 {[%clk 0:01:33]}  Qxd5 {[%clk 0:01:51]} 23. Rad1 {[%clk 0:01:33]}  Qc6 {[%clk 0:01:44]} 24. Bc4 {[%clk 0:01:29]}  Ne6 {[%clk 0:01:36]} 25. Rfe1 {[%clk 0:01:25]}  Rd8 {[%clk 0:01:12]} 26. Qe3 {[%clk 0:01:22]}  Rxd1 {[%clk 0:01:06]} 27. Rxd1 {[%clk 0:01:23]}  Qc7 {[%clk 0:01:03]} 28. Nfe4 {[%clk 0:01:07]}  Nxe4 {[%clk 0:01:00]} 29. Qxe4 {[%clk 0:01:07]}  Nxg5 {[%clk 0:00:57]} 30. Qxg6+ {[%clk 0:01:08]}  Kf8 {[%clk 0:00:54]} 31. Qh6+ {[%clk 0:01:08]}  Ke8 {[%clk 0:00:54]} 32. Qxg5 {[%clk 0:01:08]}  Qc5+ {[%clk 0:00:45]} 33. Kh1 {[%clk 0:01:07]}  Bb7 {[%clk 0:00:26]} 34. Qxh5 {[%clk 0:00:52]}  Qc7 {[%clk 0:00:22]} 35. Qg5 {[%clk 0:00:37]}  Kf8 {[%clk 0:00:18]} 36. Qf6 {[%clk 0:00:31]}  e4 {[%clk 0:00:17]} 37. Qh6+ {[%clk 0:00:23]}  Ke8 {[%clk 0:00:17]} 38. fxe4 {[%clk 0:00:22]}  Bxe4 {[%clk 0:00:15]} 39. Re1 {[%clk 0:00:21]}  Qe5 {[%clk 0:00:15]} 40. Rxe4 {[%clk 0:00:10]}  Qxe4 {[%clk 0:00:14]} 41. Qh8+ {[%clk 0:00:11]}  Ke7 {[%clk 0:00:14]} 42. Qxb8 {[%clk 0:00:11]}  Qxh4+ {[%clk 0:00:13]} 43. Kg1 {[%clk 0:00:10]}  Qd4+ {[%clk 0:00:07]} 44. Kf1 {[%clk 0:00:10]}  Qd1+ {[%clk 0:00:06]} 45. Kf2 {[%clk 0:00:10]}  Qd4+ {[%clk 0:00:03]} 46. Ke2 {[%clk 0:00:11]}  Qe4+ {[%clk 0:00:02]} 47. Kd2 {[%clk 0:00:11]}  Qf4+ {[%clk 0:00:02]} 48. Qxf4 {[%clk 0:00:10]} 1-0


[Site "https://www.chess.com"]

[Event "Titled Tuesday Blitz November 15 Early 2022"]
[White "Kozak, Antoni"]
[Black "Garagulya, Konstantin"]
[WhiteFideId "21832030"]
[BlackFideId "4128931"]
[WhiteElo "2447"]
[BlackElo "2329"]
[Result "1-0"]
[Round "03"]
[TimeControl "180+1"]
[Date "2022.11.16"]
[WhiteClock "0:00:34"]
[BlackClock "0:00:03"]

1. Nf3 {[%clk 0:03:00]}  Nf6 {[%clk 0:02:59]} 2. g3 {[%clk 0:03:01]}  b6 {[%clk 0:02:59]} 3. Bg2 {[%clk 0:03:01]}  Bb7 {[%clk 0:02:59]} 4. O-O {[%clk 0:03:02]}  c5 {[%clk 0:03:00]} 5. d3 {[%clk 0:02:58]}  e6 {[%clk 0:03:00]} 6. e4 {[%clk 0:02:58]}  d5 {[%clk 0:03:01]} 7. e5 {[%clk 0:02:57]}  Nfd7 {[%clk 0:03:01]} 8. Re1 {[%clk 0:02:55]}  g6 {[%clk 0:03:00]} 9. Bf4 {[%clk 0:02:50]}  Bg7 {[%clk 0:03:00]} 10. Nbd2 {[%clk 0:02:49]}  Nc6 {[%clk 0:03:00]} 11. h4 {[%clk 0:02:47]}  h6 {[%clk 0:03:00]} 12. Nf1 {[%clk 0:02:47]}  Qc7 {[%clk 0:03:00]} 13. Qe2 {[%clk 0:02:44]}  Nd4 {[%clk 0:02:57]} 14. Nxd4 {[%clk 0:02:40]}  cxd4 {[%clk 0:02:58]} 15. Nh2 {[%clk 0:02:37]}  O-O-O {[%clk 0:02:11]} 16. Nf3 {[%clk 0:02:35]}  Qc5 {[%clk 0:01:57]} 17. Qd2 {[%clk 0:02:33]}  a5 {[%clk 0:01:57]} 18. a3 {[%clk 0:02:29]}  a4 {[%clk 0:01:57]} 19. b4 {[%clk 0:02:27]}  Qc3 {[%clk 0:01:52]} 20. Qd1 {[%clk 0:02:09]}  Kb8 {[%clk 0:01:45]} 21. Bd2 {[%clk 0:02:07]}  Qb2 {[%clk 0:01:41]} 22. Qe2 {[%clk 0:01:35]}  Rc8 {[%clk 0:01:34]} 23. Reb1 {[%clk 0:01:34]}  Qxc2 {[%clk 0:01:34]} 24. Nxd4 {[%clk 0:01:27]}  Qc7 {[%clk 0:01:00]} 25. f4 {[%clk 0:01:26]}  Ba6 {[%clk 0:00:22]} 26. Rc1 {[%clk 0:01:13]}  Qd8 {[%clk 0:00:15]} 27. Nc6+ {[%clk 0:01:12]}  Rxc6 {[%clk 0:00:15]} 28. Rxc6 {[%clk 0:01:13]}  Bb5 {[%clk 0:00:15]} 29. Rc3 {[%clk 0:01:07]}  Qe7 {[%clk 0:00:08]} 30. Rac1 {[%clk 0:01:06]}  g5 {[%clk 0:00:08]} 31. Qf2 {[%clk 0:01:00]}  gxh4 {[%clk 0:00:07]} 32. gxh4 {[%clk 0:00:59]}  f6 {[%clk 0:00:07]} 33. Rc7 {[%clk 0:00:52]}  fxe5 {[%clk 0:00:05]} 34. Qxb6+ {[%clk 0:00:33]}  Nxb6 {[%clk 0:00:03]} 35. Rxe7 {[%clk 0:00:34]} 1-0


[Site "https://www.chess.com"]

[Event "Titled Tuesday Blitz November 15 Early 2022"]
[White "Krzyzanowski, Marcin"]
[Black "Bortnyk, Olexandr"]
[WhiteFideId "1132199"]
[BlackFideId "14120828"]
[WhiteElo "2435"]
[BlackElo "2723"]
[Result "1/2-1/2"]
[Round "03"]
[TimeControl "180+1"]
[Date "2022.11.15"]
[WhiteClock "0:00:05"]
[BlackClock "0:00:08"]

1. e4 {[%clk 0:03:00]}  Nf6 {[%clk 0:02:59]} 2. e5 {[%clk 0:02:59]}  Nd5 {[%clk 0:03:00]} 3. d4 {[%clk 0:02:57]}  d6 {[%clk 0:03:00]} 4. exd6 {[%clk 0:02:58]}  exd6 {[%clk 0:03:00]} 5. c4 {[%clk 0:02:57]}  Nb6 {[%clk 0:03:00]} 6. Nc3 {[%clk 0:02:57]}  Be7 {[%clk 0:03:00]} 7. Be3 {[%clk 0:02:57]}  O-O {[%clk 0:03:01]} 8. Be2 {[%clk 0:02:57]}  Nc6 {[%clk 0:03:01]} 9. Nf3 {[%clk 0:02:53]}  Bg4 {[%clk 0:03:01]} 10. b3 {[%clk 0:02:52]}  Bf6 {[%clk 0:03:01]} 11. O-O {[%clk 0:02:53]}  Re8 {[%clk 0:03:01]} 12. Qd2 {[%clk 0:02:52]}  h6 {[%clk 0:03:01]} 13. Rfe1 {[%clk 0:02:50]}  d5 {[%clk 0:03:00]} 14. c5 {[%clk 0:02:49]}  Nc8 {[%clk 0:03:00]} 15. h3 {[%clk 0:02:48]}  Bh5 {[%clk 0:02:59]} 16. Nh2 {[%clk 0:02:45]}  Bxe2 {[%clk 0:02:57]} 17. Nxe2 {[%clk 0:02:46]}  N8e7 {[%clk 0:02:57]} 18. Ng4 {[%clk 0:02:43]}  Nf5 {[%clk 0:02:56]} 19. b4 {[%clk 0:02:34]}  h5 {[%clk 0:02:54]} 20. Nxf6+ {[%clk 0:02:28]}  Qxf6 {[%clk 0:02:55]} 21. b5 {[%clk 0:02:27]}  Nxe3 {[%clk 0:02:50]} 22. fxe3 {[%clk 0:02:24]}  Ne7 {[%clk 0:02:50]} 23. Nf4 {[%clk 0:02:21]}  g6 {[%clk 0:02:46]} 24. Rf1 {[%clk 0:02:18]}  Qg5 {[%clk 0:02:45]} 25. Rf3 {[%clk 0:02:17]}  c6 {[%clk 0:02:44]} 26. a4 {[%clk 0:02:15]}  Nf5 {[%clk 0:02:44]} 27. Qf2 {[%clk 0:01:55]}  h4 {[%clk 0:02:29]} 28. Re1 {[%clk 0:01:44]}  Re4 {[%clk 0:02:19]} 29. Nd3 {[%clk 0:01:39]}  f6 {[%clk 0:02:12]} 30. bxc6 {[%clk 0:01:33]}  bxc6 {[%clk 0:02:13]} 31. Rf4 {[%clk 0:01:21]}  Rb8 {[%clk 0:02:13]} 32. Rxe4 {[%clk 0:01:19]}  dxe4 {[%clk 0:02:14]} 33. Nf4 {[%clk 0:01:19]}  Qg3 {[%clk 0:02:12]} 34. Qxg3 {[%clk 0:01:16]}  hxg3 {[%clk 0:02:12]} 35. Nxg6 {[%clk 0:01:15]}  Rb4 {[%clk 0:02:02]} 36. Nf4 {[%clk 0:01:14]}  Nxe3 {[%clk 0:02:00]} 37. Nh5 {[%clk 0:00:53]}  Nc2 {[%clk 0:01:51]} 38. Rf1 {[%clk 0:00:36]}  e3 {[%clk 0:01:47]} 39. Nxg3 {[%clk 0:00:36]}  Nxd4 {[%clk 0:01:46]} 40. Rxf6 {[%clk 0:00:34]}  e2 {[%clk 0:01:41]} 41. Kf2 {[%clk 0:00:33]}  Rb1 {[%clk 0:01:42]} 42. Nxe2 {[%clk 0:00:31]}  Rb2 {[%clk 0:01:42]} 43. Kf1 {[%clk 0:00:29]}  Rxe2 {[%clk 0:01:07]} 44. Rxc6 {[%clk 0:00:28]}  Rc2 {[%clk 0:00:57]} 45. Rc8+ {[%clk 0:00:28]}  Kf7 {[%clk 0:00:57]} 46. Rc7+ {[%clk 0:00:29]}  Kf6 {[%clk 0:00:57]} 47. Rxa7 {[%clk 0:00:30]}  Ke5 {[%clk 0:00:55]} 48. Re7+ {[%clk 0:00:28]}  Kf4 {[%clk 0:00:54]} 49. Kg1 {[%clk 0:00:28]}  Nf5 {[%clk 0:00:47]} 50. Rf7 {[%clk 0:00:25]}  Ke4 {[%clk 0:00:40]} 51. Kh2 {[%clk 0:00:24]}  Rxc5 {[%clk 0:00:40]} 52. Rb7 {[%clk 0:00:19]}  Rc2 {[%clk 0:00:38]} 53. Rb4+ {[%clk 0:00:20]}  Nd4 {[%clk 0:00:38]} 54. h4 {[%clk 0:00:19]}  Ke3 {[%clk 0:00:38]} 55. h5 {[%clk 0:00:18]}  Rc5 {[%clk 0:00:37]} 56. g4 {[%clk 0:00:18]}  Rc2+ {[%clk 0:00:34]} 57. Kg3 {[%clk 0:00:18]}  Rc1 {[%clk 0:00:32]} 58. Rb8 {[%clk 0:00:16]}  Rg1+ {[%clk 0:00:31]} 59. Kh3 {[%clk 0:00:14]}  Kf2 {[%clk 0:00:27]} 60. Rb2+ {[%clk 0:00:13]}  Kf3 {[%clk 0:00:25]} 61. h6 {[%clk 0:00:09]}  Rg3+ {[%clk 0:00:18]} 62. Kh4 {[%clk 0:00:08]}  Rxg4+ {[%clk 0:00:18]} 63. Kh5 {[%clk 0:00:09]}  Kf4 {[%clk 0:00:05]} 64. Rf2+ {[%clk 0:00:08]}  Nf3 {[%clk 0:00:05]} 65. Rxf3+ {[%clk 0:00:06]}  Kxf3 {[%clk 0:00:06]} 66. h7 {[%clk 0:00:07]}  Kg3 {[%clk 0:00:06]} 67. Kh6 {[%clk 0:00:06]}  Rxa4 {[%clk 0:00:07]} 68. h8=Q {[%clk 0:00:05]}  Rh4+ {[%clk 0:00:08]} 69. Kg7 {[%clk 0:00:05]}  Rxh8 {[%clk 0:00:08]} 70. Kxh8 {[%clk 0:00:05]} 1/2-1/2


[Site "https://www.chess.com"]

[Event "Titled Tuesday Blitz November 15 Early 2022"]
[White "Kuznetsov, Mikhail"]
[Black "Mladenovic, Stefan"]
[WhiteFideId "4117190"]
[BlackFideId "942227"]
[WhiteElo "1981"]
[BlackElo "2337"]
[Result "0-1"]
[Round "03"]
[TimeControl "180+1"]
[Date "2022.11.16"]
[WhiteClock "0:00:01"]
[BlackClock "0:02:18"]

1. Nf3 {[%clk 0:02:59]}  Nf6 {[%clk 0:02:58]} 2. g3 {[%clk 0:03:00]}  e6 {[%clk 0:02:58]} 3. Bg2 {[%clk 0:02:59]}  d5 {[%clk 0:02:59]} 4. O-O {[%clk 0:03:00]}  Be7 {[%clk 0:03:00]} 5. c4 {[%clk 0:02:59]}  O-O {[%clk 0:03:01]} 6. d4 {[%clk 0:03:00]}  dxc4 {[%clk 0:03:01]} 7. Qa4 {[%clk 0:03:00]}  b6 {[%clk 0:03:02]} 8. Ne5 {[%clk 0:02:34]}  Qxd4 {[%clk 0:02:52]} 9. Bxa8 {[%clk 0:02:33]}  Qxe5 {[%clk 0:02:53]} 10. Qxc4 {[%clk 0:02:20]}  Ba6 {[%clk 0:02:51]} 11. Qc2 {[%clk 0:01:49]}  Qxe2 {[%clk 0:02:51]} 12. Qxe2 {[%clk 0:01:46]}  Bxe2 {[%clk 0:02:52]} 13. Re1 {[%clk 0:01:47]}  Bd3 {[%clk 0:02:52]} 14. Nc3 {[%clk 0:01:44]}  c5 {[%clk 0:02:50]} 15. Bf4 {[%clk 0:01:41]}  c4 {[%clk 0:02:47]} 16. Rad1 {[%clk 0:01:29]}  Nbd7 {[%clk 0:02:47]} 17. Bf3 {[%clk 0:01:27]}  Nc5 {[%clk 0:02:47]} 18. Rd2 {[%clk 0:01:07]}  Rd8 {[%clk 0:02:47]} 19. Be3 {[%clk 0:00:42]}  Nd5 {[%clk 0:02:39]} 20. Nxd5 {[%clk 0:00:22]}  exd5 {[%clk 0:02:39]} 21. Bxc5 {[%clk 0:00:03]}  Bxc5 {[%clk 0:02:40]} 22. Be2 {[%clk 0:00:03]}  Bb4 {[%clk 0:02:40]} 23. Bxd3 {[%clk 0:00:02]}  Bxd2 {[%clk 0:02:39]} 24. Rd1 {[%clk 0:00:03]}  Bg5 {[%clk 0:02:34]} 25. Bf1 {[%clk 0:00:02]}  Bf6 {[%clk 0:02:33]} 26. b3 {[%clk 0:00:02]}  b5 {[%clk 0:02:32]} 27. a4 {[%clk 0:00:01]}  a6 {[%clk 0:02:19]} 28. axb5 {[%clk 0:00:02]}  axb5 {[%clk 0:02:20]} 29. bxc4 {[%clk 0:00:02]}  bxc4 {[%clk 0:02:21]} 30. Kg2 {[%clk 0:00:02]}  Kf8 {[%clk 0:02:21]} 31. Kf3 {[%clk 0:00:02]}  Ke7 {[%clk 0:02:21]} 32. Rb1 {[%clk 0:00:01]}  Rd7 {[%clk 0:02:18]} 0-1


[Site "https://www.chess.com"]

[Event "Titled Tuesday Blitz November 15 Early 2022"]
[White "Langner, Ladislav"]
[Black "Boyer, Mahel"]
[WhiteFideId "300403"]
[BlackFideId "45102422"]
[WhiteElo "2346"]
[BlackElo "2454"]
[Result "0-1"]
[Round "03"]
[TimeControl "180+1"]
[Date "2022.11.16"]
[WhiteClock "0:00:02"]
[BlackClock "0:00:28"]

1. e4 {[%clk 0:03:00]}  Nc6 {[%clk 0:02:57]} 2. Nc3 {[%clk 0:02:59]}  d5 {[%clk 0:02:58]} 3. exd5 {[%clk 0:02:58]}  Nb4 {[%clk 0:02:58]} 4. Bc4 {[%clk 0:02:54]}  Nf6 {[%clk 0:02:42]} 5. Nf3 {[%clk 0:02:32]}  Bf5 {[%clk 0:02:41]} 6. d3 {[%clk 0:02:31]}  Nbxd5 {[%clk 0:02:31]} 7. Nxd5 {[%clk 0:02:29]}  Nxd5 {[%clk 0:02:32]} 8. Nd4 {[%clk 0:02:22]}  Bc8 {[%clk 0:01:22]} 9. Qf3 {[%clk 0:02:19]}  c6 {[%clk 0:01:19]} 10. O-O {[%clk 0:02:10]}  g6 {[%clk 0:01:16]} 11. Ne2 {[%clk 0:01:49]}  Bg7 {[%clk 0:01:15]} 12. Nc3 {[%clk 0:01:50]}  Be6 {[%clk 0:01:13]} 13. Ne4 {[%clk 0:01:35]}  O-O {[%clk 0:01:13]} 14. Nc5 {[%clk 0:01:29]}  Bc8 {[%clk 0:01:05]} 15. c3 {[%clk 0:01:28]}  e5 {[%clk 0:01:02]} 16. Qg3 {[%clk 0:01:17]}  h6 {[%clk 0:00:51]} 17. Re1 {[%clk 0:01:15]}  b6 {[%clk 0:00:46]} 18. Ne4 {[%clk 0:01:13]}  Kh7 {[%clk 0:00:44]} 19. h4 {[%clk 0:00:31]}  f5 {[%clk 0:00:39]} 20. h5 {[%clk 0:00:29]}  gxh5 {[%clk 0:00:35]} 21. Nd2 {[%clk 0:00:23]}  h4 {[%clk 0:00:35]} 22. Qh2 {[%clk 0:00:21]}  Nf4 {[%clk 0:00:29]} 23. Nf3 {[%clk 0:00:20]}  b5 {[%clk 0:00:26]} 24. Bb3 {[%clk 0:00:17]}  Nxd3 {[%clk 0:00:25]} 25. Rd1 {[%clk 0:00:17]}  e4 {[%clk 0:00:25]} 26. Nxh4 {[%clk 0:00:17]}  Qf6 {[%clk 0:00:26]} 27. Nf3 {[%clk 0:00:14]}  Nxc1 {[%clk 0:00:24]} 28. Raxc1 {[%clk 0:00:10]}  exf3 {[%clk 0:00:24]} 29. Rd3 {[%clk 0:00:09]}  Qg5 {[%clk 0:00:24]} 30. Rcd1 {[%clk 0:00:07]}  Qxg2+ {[%clk 0:00:25]} 31. Qxg2 {[%clk 0:00:07]}  fxg2 {[%clk 0:00:26]} 32. Rd8 {[%clk 0:00:05]}  f4 {[%clk 0:00:26]} 33. Rxf8 {[%clk 0:00:04]}  Bxf8 {[%clk 0:00:27]} 34. Rd8 {[%clk 0:00:04]}  Bc5 {[%clk 0:00:27]} 35. Be6 {[%clk 0:00:03]}  Bxe6 {[%clk 0:00:27]} 36. Rxa8 {[%clk 0:00:02]}  Bd5 {[%clk 0:00:28]} 0-1


[Site "https://www.chess.com"]